fUST/lending_fUST_20260410
["ID","MTS","AMOUNT","RATE_DAILY","PERIOD"]
[420202780,1775772650969,-1282.43,0.00019178,18]
[420202781,1775772650982,-1437.12,0.00019178,18]
[420202782,1775772651002,-2356.53,0.00019178,18]
[420202783,1775772651013,-500.0,0.00019178,18]
[420202784,1775772651023,-500.0,0.00019178,18]
[420202785,1775772651043,-2449.62,0.00019178,18]
[420202786,1775772651052,-500.0,0.00019178,18]
[420202787,1775772651074,-500.0,0.00019178,18]
[420202788,1775772651084,-557.71,0.00019178,18]
[420202789,1775772651320,-702.85,0.00019178,18]
[420202790,1775772651332,-710.59,0.00019178,18]
[420202791,1775772651355,-705.68,0.00019178,18]
[420202792,1775772651366,-500.0,0.00019178,18]
[420202793,1775772651384,-500.0,0.00019178,18]
[420202794,1775772651393,-500.0,0.00019178,2]
[420202795,1775772651418,-500.0,0.00019178,18]
[420202796,1775772651428,-500.0,0.00019178,18]
[420202797,1775772651442,-760.01,0.00019178,18]
[420202798,1775772651452,-500.0,0.00019178,18]
[420202799,1775772651470,-500.0,0.00019178,18]
[420202800,1775772651480,-500.0,0.00019178,18]
[420202801,1775772651489,-500.0,0.00019178,18]
[420202802,1775772651504,-6655.3,0.00019178,18]
[420202803,1775772651513,-500.0,0.00019178,18]
[420202804,1775772651530,-1156.67,0.00019178,18]
[420202805,1775772651540,-500.0,0.00019178,18]
[420202806,1775772651549,-500.0,0.00019178,18]
[420202807,1775772651567,-567.78,0.00019178,18]
[420202808,1775772651576,-500.0,0.00019178,18]
[420202809,1775772651589,-599.41,0.00019178,18]
[420202810,1775772651602,-500.0,0.00019178,18]
[420202811,1775772651615,-642.61,0.00019178,18]
[420202812,1775772651624,-500.0,0.00019178,18]
[420202813,1775772651649,-2467.31,0.00019178,18]
[420202814,1775772651659,-500.0,0.00019178,18]
[420202815,1775772651672,-500.17171573,0.00019178,18]
[420202816,1775772651691,-500.0,0.00019178,18]
[420202817,1775772651712,-500.0,0.00019178,18]
[420202818,1775772651721,-619.33,0.00019178,18]
[420202819,1775772651732,-500.0,0.00019178,18]
[420202820,1775772651747,-500.0,0.00019178,18]
[420202821,1775772651773,-200.0,0.00019178,2]
[420202822,1775772651782,-513.29,0.00019178,18]
[420202823,1775772651801,-552.84,0.00019178,18]
[420202824,1775772651812,-2111.34,0.00019178,18]
[420202825,1775772651833,-500.0,0.00019178,18]
[420202826,1775772651842,-2025.14,0.00019178,18]
[420202827,1775772651851,-1242.47,0.00019178,18]
[420202828,1775772651865,-500.0,0.00019178,18]
[420202829,1775772651876,-2033.65,0.00019178,18]
[420202830,1775772651899,-500.0,0.00019178,18]
[420202831,1775772651908,-1050.38,0.00019178,18]
[420202832,1775772651923,-500.0,0.00019178,18]
[420202833,1775772651937,-5912.57,0.00019178,18]
[420202834,1775772651954,-1811.25,0.00019178,18]
[420202835,1775772651963,-500.0,0.00019178,18]
[420202836,1775772651975,-1818.4,0.00019178,18]
[420202837,1775772651992,-430.08791258,0.00019178,18]
[420202838,1775772652001,-500.0,0.00019178,18]
[420202839,1775772652011,-645.75,0.00019178,18]
[420202840,1775772652026,-500.0,0.00019178,18]
[420202841,1775772652054,-500.0,0.00019178,18]
[420202842,1775772652066,-2592.13,0.00019178,18]
[420202843,1775772652118,-1942.78,0.00019178,18]
[420202844,1775772652155,-500.0,0.00019178,18]
[420202845,1775772652165,-500.0,0.00019178,18]
[420202846,1775772652207,-2522.81,0.00019178,18]
[420202847,1775772652217,-500.0,0.00019178,18]
[420202848,1775772652226,-528.73,0.00019178,18]
[420202849,1775772652244,-808.84,0.00019178,18]
[420202850,1775772652254,-500.0,0.00019178,18]
[420202851,1775772652277,-500.0,0.00019178,18]
[420202852,1775772652301,-500.0,0.00019178,18]
[420202853,1775772652338,-500.0,0.00019178,18]
[420202854,1775772652349,-500.0,0.00019178,18]
[420202855,1775772652378,-241.68617685,0.00019178,18]
[420202856,1775772652391,-2449.48,0.00019178,18]
[420202857,1775772652450,-1541.2281,0.00019452,18]
[420202858,1775772652465,-1541.2281,0.00019452,18]
[420202859,1775772652478,-1541.2281,0.00019452,18]
[420202860,1775772652487,-1387.1085,0.00019452,18]
[420202861,1775772652498,-1387.1085,0.00019452,18]
[420202862,1775772652508,-500.0,0.00019452,18]
[420202863,1775772652519,-767.95,0.00019452,18]
[420202864,1775772652529,-500.0,0.00019452,18]
[420202865,1775772652542,-500.0,0.00019452,18]
[420202866,1775772652557,-592.68,0.00019452,18]
[420202867,1775772652571,-503.16,0.00019452,18]
[420202868,1775772652581,-161.74946759,0.00019452,18]
[420202869,1775772652590,-500.0,0.00019452,18]
[420202870,1775772652601,-500.0,0.00019452,18]
[420202871,1775772652614,-500.0,0.00019452,18]
[420202872,1775772652629,-500.0,0.00019452,18]
[420202873,1775772652640,-500.0,0.00019452,18]
[420202874,1775772652652,-500.0,0.00019452,18]
[420202875,1775772652661,-500.0,0.00019452,18]
[420202876,1775772652671,-500.0,0.00019452,18]
[420202877,1775772652686,-500.0,0.00019452,18]
[420202878,1775772652698,-500.0,0.00019452,18]
[420202879,1775772652708,-500.0,0.00019452,18]
[420202880,1775772652723,-500.0,0.00019452,18]
[420202881,1775772652734,-500.0,0.00019452,18]
[420202882,1775772652752,-500.0,0.00019452,18]
[420202883,1775772652762,-500.0,0.00019452,18]
[420202884,1775772652781,-500.0,0.00019452,18]
[420202885,1775772652791,-500.0,0.00019452,18]
[420202886,1775772652800,-500.0,0.00019452,18]
[420202887,1775772652818,-500.0,0.00019452,18]
[420202888,1775772652829,-500.0,0.00019452,18]
[420202889,1775772652854,-500.0,0.00019452,18]
[420202890,1775772652864,-500.0,0.00019452,18]
[420202891,1775772652874,-500.0,0.00019452,18]
[420202892,1775772652892,-1927.12,0.00019452,18]
[420202893,1775772652910,-500.0,0.00019452,18]
[420202894,1775772652919,-500.0,0.00019452,18]
[420202895,1775772652934,-500.0,0.00019452,18]
[420202896,1775772652955,-500.0,0.00019452,18]
[420202897,1775772652984,-500.0,0.00019452,18]
[420202898,1775772653007,-500.0,0.00019452,18]
[420202899,1775772653017,-500.0,0.00019452,18]
[420202900,1775772653027,-574.34,0.00019452,18]
[420202901,1775772653046,-767.3,0.00019452,18]
[420202902,1775772653064,-500.0,0.00019452,18]
[420202903,1775772653074,-500.0,0.00019452,18]
[420202904,1775772653084,-500.0,0.00019452,18]
[420202905,1775772653093,-500.0,0.00019452,18]
[420202906,1775772653115,-500.0,0.00019452,18]
[420202907,1775772653147,-500.0,0.00019452,18]
[420202908,1775772653159,-500.0,0.00019452,18]
[420202909,1775772653170,-1574.47,0.00019452,18]
[420202910,1775772653184,-500.0,0.00019452,18]
[420202911,1775772653194,-500.0,0.00019452,18]
[420202912,1775772653204,-500.0,0.00019452,18]
[420202913,1775772653222,-500.0,0.00019452,18]
[420202914,1775772653232,-695.49,0.00019452,18]
[420202915,1775772653242,-500.0,0.00019452,18]
[420202916,1775772653258,-500.0,0.00019452,18]
[420202917,1775772653268,-500.0,0.00019452,18]
[420202918,1775772653284,-525.74,0.00019452,18]
[420202919,1775772653295,-500.0,0.00019452,18]
[420202920,1775772653307,-500.0,0.00019452,18]
[420202921,1775772653319,-629.92,0.00019452,18]
[420202922,1775772653334,-500.0,0.00019452,18]
[420202923,1775772653354,-500.0,0.00019452,18]
[420202924,1775772653364,-777.87,0.00019452,18]
[420202925,1775772653382,-500.0,0.00019452,18]
[420202926,1775772653393,-500.0,0.00019452,18]
[420202927,1775772653413,-500.0,0.00019452,18]
[420202928,1775772653425,-789.02,0.00019452,18]
[420202929,1775772653436,-500.0,0.00019452,18]
[420202930,1775772653454,-816.68,0.00019452,18]
[420202931,1775772653466,-705.9,0.00019452,18]
[420202932,1775772653490,-500.0,0.00019452,18]
[420202933,1775772653500,-553.47813969,0.00019452,18]
[420202934,1775772653510,-818.93,0.00019452,18]
[420202935,1775772653525,-602.3,0.00019452,18]
[420202936,1775772653541,-500.0,0.00019452,18]
[420202937,1775772653552,-500.0,0.00019452,18]
[420202938,1775772653562,-1649.3,0.00019452,18]
[420202939,1775772653580,-392.58351716,0.00019452,18]
[420202940,1775772653590,-974.47,0.00019452,18]
[420202941,1775772653603,-500.0,0.00019452,18]
[420202942,1775772653616,-500.0,0.00019452,18]
[420202943,1775772653628,-756.66,0.00019452,18]
[420202944,1775772653637,-500.0,0.00019452,18]
[420202945,1775772653650,-261.00771263,0.00019452,18]
[420202946,1775772653673,-500.0,0.00019452,18]
[420202947,1775772653686,-500.0,0.00019452,18]
[420202948,1775772653695,-500.0,0.00019452,18]
[420202949,1775772653707,-717.34,0.00019452,18]
[420202950,1775772653743,-500.0,0.00019452,18]
[420202951,1775772653753,-1379.41,0.00019452,18]
[420202952,1775772653770,-500.0,0.00019452,18]
[420202953,1775772653794,-500.0,0.00019452,18]
[420202954,1775772653803,-1460.71,0.00019452,18]
[420202955,1775772653818,-500.0,0.00019452,18]
[420202956,1775772653831,-500.0,0.00019452,18]
[420202957,1775772653854,-1971.44,0.00019452,18]
[420202958,1775772653873,-500.0,0.00019452,18]
[420202959,1775772653896,-500.0,0.00019452,18]
[420202960,1775772653906,-1489.66,0.00019452,18]
[420202961,1775772653930,-658.17,0.00019452,18]
[420202962,1775772653939,-500.0,0.00019452,18]
[420202963,1775772653962,-500.0,0.00019452,18]
[420202964,1775772653975,-500.0,0.00019452,18]
[420202965,1775772653992,-1020.96,0.00019452,18]
[420202966,1775772654012,-1221.44,0.00019452,18]
[420202967,1775772654021,-500.0,0.00019452,18]
[420202968,1775772654045,-500.0,0.00019452,18]
[420202969,1775772654054,-500.0,0.00019452,18]
[420202970,1775772654065,-500.0,0.00019452,18]
[420202971,1775772654086,-500.0,0.00019452,18]
[420202972,1775772654105,-189.99746154,0.00019452,18]
[420202973,1775772654117,-584.96,0.00019452,18]
[420202974,1775772654130,-500.0,0.00019452,18]
[420202975,1775772654144,-548.02,0.00019452,18]
[420202976,1775772654171,-500.0,0.00019452,18]
[420202977,1775772654182,-1201.13,0.00019452,18]
[420202978,1775772654210,-3396.57,0.00019452,18]
[420202979,1775772654245,-500.0,0.00019452,18]
[420202980,1775772654261,-1367.46,0.00019452,18]
[420202981,1775772654287,-2711.15,0.00019452,18]
[420202982,1775772654298,-1039.52,0.00019452,18]
[420202983,1775772654307,-500.0,0.00019452,18]
[420202984,1775772654330,-500.0,0.00019452,18]
[420202985,1775772654356,-676.82,0.00019452,18]
[420202986,1775772654369,-514.49,0.00019452,18]
[420202987,1775772654389,-500.0,0.00019452,18]
[420202988,1775772654411,-500.0,0.00019452,18]
[420202989,1775772654422,-500.0,0.00019452,18]
[420202990,1775772654439,-500.0,0.00019452,18]
[420202991,1775772654453,-2197.9,0.00019452,18]
[420202992,1775772654480,-819.83,0.00019452,18]
[420202993,1775772654491,-1489.76,0.00019452,18]
[420202994,1775772654521,-500.0,0.00019452,18]
[420202995,1775772654548,-500.0,0.00019452,18]
[420202996,1775772654569,-500.0,0.00019452,7]
[420202997,1775772654578,-1156.72,0.00019452,18]
[420202998,1775772654587,-561.35,0.00019452,18]
[420202999,1775772654602,-500.0,0.00019452,18]
[420203000,1775772654618,-500.0,0.00019452,18]
[420203001,1775772654639,-500.0,0.00019452,18]
[420203002,1775772654648,-500.0,0.00019452,18]
[420203003,1775772654675,-500.0,0.00019452,18]
[420203004,1775772654700,-1994.09,0.00019452,18]
[420203005,1775772654710,-1417.33,0.00019452,18]
[420203006,1775772654721,-500.0,0.00019452,2]
[420203007,1775772654731,-500.0,0.00019452,18]
[420203008,1775772654741,-500.0,0.00019452,18]
[420203009,1775772654754,-1209.43,0.00019452,18]
[420203010,1775772654765,-500.0,0.00019452,18]
[420203011,1775772654785,-500.0,0.00019452,18]
[420203012,1775772654795,-500.0,0.00019452,18]
[420203013,1775772654806,-500.0,0.00019452,18]
[420203014,1775772654829,-1282.43,0.00019452,18]
[420203015,1775772654838,-1437.12,0.00019452,18]
[420203016,1775772654868,-2356.53,0.00019452,18]
[420203017,1775772654900,-500.0,0.00019452,18]
[420203018,1775772654916,-500.0,0.00019452,18]
[420203019,1775772654954,-2449.62,0.00019452,18]
[420203020,1775772654981,-500.0,0.00019452,18]
[420203021,1775772655009,-500.0,0.00019452,18]
[420203022,1775772655025,-557.71,0.00019452,18]
[420203023,1775772655078,-702.85,0.00019452,18]
[420203024,1775772655087,-710.59,0.00019452,18]
[420203025,1775772655097,-705.68,0.00019452,18]
[420203026,1775772655119,-500.0,0.00019452,18]
[420203027,1775772655129,-500.0,0.00019452,18]
[420203028,1775772655140,-500.0,0.00019452,2]
[420203029,1775772655150,-500.0,0.00019452,18]
[420203030,1775772655162,-500.0,0.00019452,18]
[420203031,1775772655172,-760.01,0.00019452,18]
[420203032,1775772655188,-500.0,0.00019452,18]
[420203033,1775772655198,-500.0,0.00019452,18]
[420203034,1775772655213,-500.0,0.00019452,18]
[420203035,1775772655228,-500.0,0.00019452,18]
[420203036,1775772655242,-6655.3,0.00019452,18]
[420203037,1775772655258,-500.0,0.00019452,18]
[420203038,1775772655279,-1156.67,0.00019452,18]
[420203039,1775772655302,-500.0,0.00019452,18]
[420203040,1775772655314,-500.0,0.00019452,18]
[420203041,1775772655352,-567.78,0.00019452,18]
[420203042,1775772655362,-500.0,0.00019452,18]
[420203043,1775772655383,-599.41,0.00019452,18]
[420203044,1775772655394,-500.0,0.00019452,18]
[420203045,1775772655410,-642.61,0.00019452,18]
[420203046,1775772655419,-500.0,0.00019452,18]
[420203047,1775772655428,-2467.31,0.00019452,18]
[420203048,1775772655440,-500.0,0.00019452,18]
[420203049,1775772655454,-500.0,0.00019452,18]
[420203050,1775772655464,-500.0,0.00019452,18]
[420203051,1775772655477,-619.33,0.00019452,18]
[420203052,1775772655487,-500.0,0.00019452,18]
[420203053,1775772655507,-500.0,0.00019452,18]
[420203054,1775772655517,-513.29,0.00019452,18]
[420203055,1775772655527,-552.84,0.00019452,18]
[420203056,1775772655542,-2111.34,0.00019452,18]
[420203057,1775772655552,-500.0,0.00019452,18]
[420203058,1775772655568,-2025.14,0.00019452,18]
[420203059,1775772655578,-1242.47,0.00019452,18]
[420203060,1775772655589,-500.0,0.00019452,18]
[420203061,1775772655600,-2033.65,0.00019452,18]
[420203062,1775772655626,-500.0,0.00019452,18]
[420203063,1775772655638,-1050.38,0.00019452,18]
[420203064,1775772655667,-500.0,0.00019452,18]
[420203065,1775772655692,-5912.57,0.00019452,18]
[420203066,1775772655702,-1811.25,0.00019452,18]
[420203067,1775772655720,-500.0,0.00019452,18]
[420203068,1775772655730,-1818.4,0.00019452,18]
[420203069,1775772655746,-500.0,0.00019452,18]
[420203070,1775772655756,-645.75,0.00019452,18]
[420203071,1775772655765,-500.0,0.00019452,18]
[420203072,1775772655779,-506.13252872,0.00019452,18]
[420203073,1775772655789,-2592.13,0.00019452,18]
[420203074,1775772655803,-1942.78,0.00019452,18]
[420203075,1775772655813,-500.0,0.00019452,18]
[420203076,1775772655823,-500.0,0.00019452,18]
[420203077,1775772655832,-2522.81,0.00019452,18]
[420203078,1775772655843,-500.0,0.00019452,18]
[420203079,1775772655853,-528.73,0.00019452,18]
[420203080,1775772655865,-808.84,0.00019452,18]
[420203081,1775772655875,-500.0,0.00019452,18]
[420203082,1775772655885,-608.48028972,0.00019452,18]
[420203083,1775772655905,-500.0,0.00019452,18]
[420203084,1775772655914,-500.0,0.00019452,18]
[420203085,1775772655928,-486.12788539,0.00019452,18]
[420203086,1775772655940,-2449.48,0.00019452,18]
[420203087,1775772655949,-1407.0,0.00019463,2]
[420203088,1775772655962,-644.0,0.00019463,2]
[420203089,1775772655976,-363.0,0.00019632,2]
[420203090,1775772655994,-1541.2281,0.00019726,18]
[420203091,1775772656004,-1541.2281,0.00019726,18]
[420203092,1775772656013,-1541.2281,0.00019726,18]
[420203093,1775772656037,-1387.1085,0.00019726,18]
[420203094,1775772656046,-1387.1085,0.00019726,18]
[420203095,1775772656062,-500.0,0.00019726,18]
[420203096,1775772656072,-767.95,0.00019726,18]
[420203097,1775772656088,-500.0,0.00019726,18]
[420203098,1775772656098,-500.0,0.00019726,18]
[420203099,1775772656108,-592.68,0.00019726,18]
[420203100,1775772656118,-503.16,0.00019726,18]
[420203101,1775772656133,-500.0,0.00019726,18]
[420203102,1775772656142,-500.0,0.00019726,18]
[420203103,1775772656160,-500.0,0.00019726,18]
[420203104,1775772656169,-500.0,0.00019726,18]
[420203105,1775772656178,-500.0,0.00019726,18]
[420203106,1775772656190,-500.0,0.00019726,18]
[420203107,1775772656200,-500.0,0.00019726,18]
[420203108,1775772656210,-500.0,0.00019726,18]
[420203109,1775772656221,-500.0,0.00019726,18]
[420203110,1775772656231,-500.0,0.00019726,18]
[420203111,1775772656240,-500.0,0.00019726,18]
[420203112,1775772656257,-500.0,0.00019726,18]
[420203113,1775772656267,-500.0,0.00019726,18]
[420203114,1775772656289,-500.0,0.00019726,18]
[420203115,1775772656299,-500.0,0.00019726,18]
[420203116,1775772656328,-500.0,0.00019726,18]
[420203117,1775772656355,-500.0,0.00019726,18]
[420203118,1775772656365,-500.0,0.00019726,18]
[420203119,1775772656388,-500.0,0.00019726,18]
[420203120,1775772656415,-500.0,0.00019726,18]
[420203121,1775772656425,-500.0,0.00019726,18]
[420203122,1775772656448,-500.0,0.00019726,18]
[420203123,1775772656460,-500.0,0.00019726,18]
[420203124,1775772656480,-1927.12,0.00019726,18]
[420203125,1775772656505,-500.0,0.00019726,18]
[420203126,1775772656515,-500.0,0.00019726,18]
[420203127,1775772656532,-500.0,0.00019726,18]
[420203128,1775772656542,-500.0,0.00019726,18]
[420203129,1775772656563,-500.0,0.00019726,18]
[420203130,1775772656591,-500.0,0.00019726,18]
[420203131,1775772656601,-500.0,0.00019726,18]
[420203132,1775772656627,-574.34,0.00019726,18]
[420203133,1775772656652,-767.3,0.00019726,18]
[420203134,1775772656663,-500.0,0.00019726,18]
[420203135,1775772656675,-245.8789794,0.00019726,18]
[420203136,1775772656696,-157.31981369,0.00019726,18]
[420203137,1775772656707,-500.0,0.00019726,18]
[420203138,1775772656733,-500.0,0.00019726,18]
[420203139,1775772656744,-500.0,0.00019726,18]
[420203140,1775772656754,-500.0,0.00019726,18]
[420203141,1775772656772,-1574.47,0.00019726,18]
[420203142,1775772656785,-500.0,0.00019726,18]
[420203143,1775772656795,-500.0,0.00019726,18]
[420203144,1775772656829,-500.0,0.00019726,18]
[420203145,1775772656840,-500.0,0.00019726,18]
[420203146,1775772656858,-695.49,0.00019726,18]
[420203147,1775772656884,-170.29370821,0.00019726,18]
[420203148,1775772657096,-329.70629179,0.00019726,18]
[420203149,1775772657322,-500.0,0.00019726,18]
[420203150,1775772657344,-500.0,0.00019726,18]
[420203151,1775772657358,-525.74,0.00019726,18]
[420203152,1775772657383,-500.0,0.00019726,18]
[420203153,1775772657392,-500.0,0.00019726,18]
[420203154,1775772657420,-629.92,0.00019726,18]
[420203155,1775772657429,-331.57255642,0.00019726,18]
[420203156,1775772657474,-500.0,0.00019726,18]
[420203157,1775772657499,-777.87,0.00019726,18]
[420203158,1775772657510,-500.0,0.00019726,18]
[420203159,1775772657531,-500.0,0.00019726,18]
[420203160,1775772657541,-500.0,0.00019726,18]
[420203161,1775772657550,-789.02,0.00019726,18]
[420203162,1775772657563,-500.0,0.00019726,18]
[420203163,1775772657591,-816.68,0.00019726,18]
[420203164,1775772657620,-705.9,0.00019726,18]
[420203165,1775772657643,-500.0,0.00019726,18]
[420203166,1775772657656,-818.93,0.00019726,18]
[420203167,1775772657685,-602.3,0.00019726,18]
[420203168,1775772657714,-500.0,0.00019726,18]
[420203169,1775772657723,-500.0,0.00019726,18]
[420203170,1775772657754,-1649.3,0.00019726,18]
[420203171,1775772657815,-974.47,0.00019726,18]
[420203172,1775772657839,-500.0,0.00019726,18]
[420203173,1775772657848,-178.79115179,0.00019726,18]
[420203174,1775772657874,-321.20884821,0.00019726,18]
[420203175,1775772657899,-105.07970477,0.00019726,18]
[420203176,1775772657937,-651.58029523,0.00019726,18]
[420203177,1775772657953,-500.0,0.00019726,18]
[420203178,1775772657963,-93.56499046,0.00019726,18]
[420203179,1775772657974,-406.43500954,0.00019726,18]
[420203180,1775772657984,-500.0,0.00019726,18]
[420203181,1775772657996,-500.0,0.00019726,18]
[420203182,1775772658006,-717.34,0.00019726,18]
[420203183,1775772658016,-500.0,0.00019726,18]
[420203184,1775772658026,-1379.41,0.00019726,18]
[420203185,1775772658040,-500.0,0.00019726,18]
[420203186,1775772658050,-500.0,0.00019726,18]
[420203187,1775772658060,-1460.71,0.00019726,18]
[420203188,1775772658074,-500.0,0.00019726,18]
[420203189,1775772658084,-500.0,0.00019726,18]
[420203190,1775772658093,-1971.44,0.00019726,18]
[420203191,1775772658105,-500.0,0.00019726,18]
[420203192,1775772658117,-500.0,0.00019726,18]
[420203193,1775772658127,-1489.66,0.00019726,18]
[420203194,1775772658142,-658.17,0.00019726,18]
[420203195,1775772658151,-500.0,0.00019726,18]
[420203196,1775772658161,-500.0,0.00019726,18]
[420203197,1775772658176,-151.56614646,0.00019726,18]
[420203198,1775772658188,-1020.96,0.00019726,18]
[420203199,1775772658204,-1221.44,0.00019726,18]
[420203200,1775772658214,-500.0,0.00019726,18]
[420203201,1775772658223,-500.0,0.00019726,18]
[420203202,1775772658243,-500.0,0.00019726,18]
[420203203,1775772658252,-500.0,0.00019726,18]
[420203204,1775772658277,-500.0,0.00019726,18]
[420203205,1775772658286,-584.96,0.00019726,18]
[420203206,1775772658310,-500.0,0.00019726,18]
[420203207,1775772658319,-548.02,0.00019726,18]
[420203208,1775772658331,-500.0,0.00019726,18]
[420203209,1775772658349,-1201.13,0.00019726,18]
[420203210,1775772658367,-3396.57,0.00019726,18]
[420203211,1775772658376,-500.0,0.00019726,18]
[420203212,1775772658396,-957.85876411,0.00019726,18]
[420203213,1775773802536,165.99,9e-05,2]
[420203222,1775773831803,-165.99,9.9e-05,2]
[420203224,1775773831813,-234.7846324,0.0001,2]
[420203226,1775773831828,-266.90883712,0.00010401,2]
[420203271,1775773840641,-33.09116288,0.00010401,2]
[420203272,1775773840663,-474.29590993,0.00010401,2]
[420203273,1775773840677,-365.70409007,0.00010401,2]
[420203274,1775773840687,-300.0,0.00010402,2]
[420203275,1775773840708,-43.37647749,0.00010402,2]
[420203276,1775773840739,-256.62352251,0.00010402,2]
[420203277,1775773840758,-300.0,0.00010402,2]
[420203279,1775773840792,-300.0,0.00010402,2]
[420203280,1775773840821,-300.0,0.00010402,2]
[420203281,1775773840843,-300.0,0.00010402,2]
[420203282,1775773840854,-300.0,0.00010402,2]
[420203283,1775773840865,-300.0,0.00010402,2]
[420203284,1775773840886,-300.0,0.00010402,2]
[420203285,1775773840896,-300.0,0.00010402,2]
[420203286,1775773840910,-300.0,0.00010402,2]
[420203287,1775773840923,-69.97180856,0.00010402,2]
[420203288,1775773840947,-230.02819144,0.00010402,2]
[420203289,1775773840958,-300.0,0.00010402,2]
[420203290,1775773840980,-300.0,0.00010402,2]
[420203291,1775773840990,-300.0,0.00010402,2]
[420203292,1775773841011,-600.0,0.00010402,2]
[420203293,1775773841022,-720.0,0.00011442,2]
[420203294,1775773841034,-177.0,0.00012201,2]
[420203295,1775773841048,-864.0,0.00012586,2]
[420203296,1775773841059,-1000.0,0.00013699,2]
[420203297,1775773841070,-1000.0,0.00013845,2]
[420203298,1775773841094,-204.0,0.00014201,2]
[420203299,1775773841104,-1000.0,0.0001523,2]
[420203300,1775773841115,-244.0,0.0001523,2]
[420203301,1775773841125,-1431.0506836,0.00015937,2]
[420203302,1775773841148,-231.0,0.00016201,2]
[420203303,1775773841158,-300.0,0.00016438,2]
[420203304,1775773841170,-1000.0,0.00016752,2]
[420203305,1775773841187,-492.0,0.00016752,2]
[420203306,1775773841197,-341.676966,0.00017599,2]
[420203307,1775773841209,-330.0,0.00017964,2]
[420203308,1775773841219,-231.62494898,0.00018201,2]
[420203309,1775773841228,-341.676966,0.0001834,2]
[420203310,1775773841238,-1000.0,0.00018428,2]
[420203311,1775773841252,-791.0,0.00018428,2]
[420203312,1775773841262,-1957.856,0.00018593,2]
[420203313,1775773841277,-537.6845,0.00018593,2]
[420203314,1775773841287,-2150.738,0.00018593,2]
[420203315,1775773841299,-2030.296672,0.00018648,2]
[420203316,1775773841324,-557.5788265,0.00018648,2]
[420203317,1775773841340,-2105.41764886,0.00018703,2]
[420203318,1775773841362,-578.20924308,0.00018703,2]
[420203319,1775773841388,-2584.18653434,0.00018713,2]
[420203320,1775773841421,-1163.26433474,0.00018758,2]
[420203321,1775773841474,-599.60298507,0.00018758,2]
[420203322,1775773841500,-421.96570524,0.0001878,2]
[420203323,1775773841510,-621.78829552,0.00018813,2]
[420203324,1775773841534,-644.79446246,0.00018868,2]
[420203325,1775773841544,-151.5,0.00018903,2]
[420203326,1775773841565,-298.5,0.00018903,2]
[420203327,1775773841575,-668.65185757,0.00018923,2]
[420203328,1775773841585,-171.12,0.00018933,2]
[420203329,1775773841597,-12660.46228337,0.00018976,2]
[420203330,1775773841607,-693.3919763,0.00018978,2]
[420203331,1775773841622,-719.04747942,0.00019033,2]
[420203332,1775773841633,-200.84663778,0.00019072,2]
[420203333,1775773841642,-500.0,0.00019072,2]
[420203334,1775773841657,-521.30574985,0.00019072,2]